bitfinex-derivatives/quotes_ETHF0:USTF0_20240915
["timestamp","ask_amount","ask_price","bid_price","bid_amount"]
[1726431905529,3.2078,2364.2,2363.9,0.393]
[1726431906029,0.82596,2364.3,2363.9,0.393]
[1726431906234,0.82596,2364.3,2363.8,0.4112]
[1726431906235,3.29,2364.1,2363.8,0.4112]
[1726431906930,3.29,2364.1,2363.8,0.83414]
[1726431907123,3.29,2364.1,2363.8,0.4112]
[1726431907726,3.29,2364.1,2363.7,3.2078]
[1726431908223,3.29,2364.1,2363.7,3.63075]
[1726431911333,3.29,2364.1,2363.8,0.42293]
[1726431911529,3.29,2364.1,2363.9,0.42292]
[1726431911730,3.6931,2364.3,2364.0,0.8086]
[1726431911938,0.4031,2364.3,2364.1,0.4181]
[1726431912236,3.71282,2364.5,2364.2,0.42286]
[1726431912237,3.29,2364.5,2364.2,0.42286]
[1726431912824,7.3145,2364.7,2364.1,0.8092]
[1726431913134,3.29,2364.9,2364.5,0.4228]
[1726431913335,3.29,2364.9,2364.6,0.4181]
[1726431913634,3.71274,2364.9,2364.6,0.4181]
[1726431913832,3.29,2364.9,2364.6,0.4181]
[1726431914032,3.71275,2364.9,2364.6,0.4181]
[1726431914231,3.29,2364.9,2364.6,0.4181]
[1726431914628,3.71274,2364.9,2364.6,0.4181]
[1726431914829,3.29,2364.7,2364.6,0.4181]
[1726431915028,3.29,2364.7,2364.3,3.2078]
[1726431915029,3.29,2364.7,2364.3,0.42283]
[1726431915744,3.29,2364.7,2364.2,0.3914]
[1726431915939,3.29,2364.7,2364.4,0.42283]
[1726431917936,0.42274,2364.9,2364.2,3.5992]
[1726431918136,0.42274,2364.9,2364.5,0.4228]
[1726431918137,3.29,2364.9,2364.5,0.4228]
[1726431919140,3.29,2364.9,2364.2,3.5992]
[1726431919336,3.29,2364.9,2364.5,0.4228]
[1726431919536,3.29,2364.8,2364.2,3.5992]
[1726431919734,3.29,2364.8,2364.5,0.42281]
[1726431919938,3.29,2364.8,2364.6,0.3822]
[1726431920134,0.42278,2364.7,2364.6,0.3822]
[1726431920341,0.4228,2364.6,2364.2,3.63066]
[1726431920539,3.29,2364.5,2364.2,3.6257]
[1726431920739,3.6959,2364.5,2364.2,4.04856]
[1726431921040,4.11871,2364.5,2364.2,0.4179]
[1726431921340,3.6959,2364.5,2364.2,0.84076]
[1726431921638,0.4059,2364.5,2364.4,0.42283]
[1726431921944,0.4059,2364.5,2364.3,0.42285]
[1726431922136,3.6959,2364.5,2364.3,0.42285]
[1726431922343,3.6959,2364.5,2364.2,4.04855]
[1726431922648,3.6959,2364.5,2364.2,3.2078]
[1726431922649,3.29,2364.3,2364.2,3.2078]
[1726431922836,3.29,2364.3,2364.1,0.84078]
[1726431923140,3.29,2364.3,2364.1,0.4179]
[1726431924045,3.29,2364.3,2364.1,0.84078]
[1726431924238,3.29,2364.3,2364.1,0.4179]
[1726431924441,3.29,2364.2,2363.9,3.63071]
[1726431924645,3.6775,2364.2,2363.9,3.63071]
[1726431924940,3.6775,2364.2,2364.0,0.42289]
[1726431925334,3.6775,2364.2,2363.9,3.63071]
[1726431925733,4.10038,2364.2,2363.9,3.2078]
[1726431925941,0.42289,2364.1,2363.9,3.2078]
[1726431926244,0.3814,2364.0,2363.9,3.2078]
[1726431927146,3.6775,2364.2,2363.9,3.63072]
[1726431927841,4.10037,2364.2,2363.9,3.63072]
[1726431928638,0.42288,2364.1,2363.9,3.2078]
[1726431928838,4.10038,2364.2,2363.9,3.2078]
[1726431930544,0.42289,2364.1,2363.9,3.2078]
[1726431930851,4.10038,2364.2,2363.9,3.2078]
[1726431932047,3.6775,2364.2,2363.9,3.63072]
[1726431932739,4.10037,2364.2,2363.9,3.63072]
[1726431933742,4.10037,2364.2,2363.9,3.2078]
[1726431935746,6.4978,2364.0,2363.3,1.65817283]
[1726431935947,7.44471,2364.2,2363.2,2.88037283]
[1726431935948,6.4978,2363.6,2363.2,2.88037283]
[1726431936245,3.29,2363.6,2363.5,0.42299]
[1726431936650,3.63073,2363.9,2363.2,1.2222]
[1726431936651,0.4208,2363.8,2363.2,2.88037283]
[1726431936952,0.4208,2363.8,2363.2,1.2222]
[1726431937153,0.4208,2363.8,2363.7,0.42295]
[1726431937549,3.29,2364.0,2363.8,0.42294]
[1726431937746,6.9186,2364.2,2363.9,0.3986]
[1726431938047,3.7108,2364.2,2364.0,0.42289]
[1726431938354,3.7108,2364.2,2363.9,0.82151]
[1726431938553,3.29,2364.0,2363.9,0.3986]
[1726431939654,0.4208,2364.2,2363.9,0.3986]
[1726431940062,0.4208,2364.2,2364.0,0.8023]
[1726431940449,0.4208,2364.2,2364.1,0.42288]
[1726431943257,6.4978,2364.5,2364.1,0.42288]
[1726431943258,6.92062,2364.5,2364.1,0.42288]
[1726431944363,0.42283,2364.4,2364.1,0.42288]
[1726431945364,6.4978,2364.5,2364.0,0.3794]
[1726431945365,6.92062,2364.5,2364.0,0.3794]
[1726431945555,6.92062,2364.5,2364.1,0.42288]
[1726431946058,6.4978,2364.5,2364.2,0.42285]
[1726431946267,6.4978,2364.5,2364.3,0.3798]
[1726431946459,6.4978,2364.5,2364.4,0.4065]
[1726431946757,6.92061,2364.5,2364.4,0.4065]
[1726431947355,3.2078,2364.5,2364.4,0.4065]
[1726431947561,3.2078,2364.5,2364.4,0.8237]
[1726431947756,3.2078,2364.5,2364.4,1.24653]
[1726431949367,3.2078,2364.5,2364.4,0.8237]
[1726431949953,3.2078,2364.5,2364.4,1.24653]
[1726431950357,0.098,2364.9,2364.4,17.5511]
[1726431950560,3.5983,2365.1,2364.7,3.2078]
[1726431950758,6.8883,2365.1,2364.8,0.80885]
[1726431950962,7.31101,2365.1,2364.8,0.80885]
[1726431951167,6.8883,2365.1,2364.8,0.80885]
[1726431951869,6.8883,2365.1,2364.9,0.81694]
[1726431952366,6.4978,2365.1,2364.9,0.3942]
[1726431952669,6.4978,2365.1,2364.9,0.81693]
[1726431952870,6.4978,2365.1,2364.9,0.3942]
[1726431953173,0.42277,2364.8,2364.3,0.80264]
[1726431953358,3.29,2364.9,2364.6,0.3942]
[1726431953964,3.71274,2364.9,2364.6,0.3942]
[1726431954162,3.2078,2364.8,2364.6,0.3942]
[1726431954870,3.71274,2364.9,2364.6,0.3942]
[1726431955064,3.29,2364.7,2364.6,0.3942]
[1726431961475,3.29,2364.7,2364.6,0.81699]
[1726431961667,3.59,2364.8,2364.6,0.81699]
[1726431961978,3.29,2364.9,2364.7,0.42276]
[1726431962169,3.29,2364.9,2364.3,0.3798]
[1726431962170,4.2288,2364.8,2364.3,1.65817283]
[1726431962366,3.29,2364.5,2364.4,0.42283]
[1726431962571,3.2078,2364.6,2364.4,0.42283]
[1726431963170,6.92058,2364.7,2364.3,1.24804]
[1726431964286,3.29,2364.5,2364.3,1.24804]
[1726431965269,6.92058,2364.7,2364.3,1.24804]
[1726431967577,0.42279,2364.6,2364.3,1.24804]
[1726431967969,6.92059,2364.7,2364.3,1.24804]
[1726431968777,6.4978,2364.7,2364.4,0.42283]
[1726431968973,6.4978,2364.7,2364.3,1.24804]
[1726431968974,6.92058,2364.7,2364.3,1.24804]
[1726431970783,0.4026,2364.8,2364.3,4.033]
[1726431970991,0.4026,2364.8,2364.5,0.42279]
[1726431972477,0.4026,2364.8,2364.6,0.42279]
[1726431972686,0.4026,2364.8,2364.7,0.4069]
[1726431973183,3.29,2364.9,2364.7,0.4069]
[1726431973380,3.29,2365.1,2364.8,0.3862]
[1726431973786,3.29,2365.1,2364.9,0.42273]
[1726431974084,0.4095,2365.4,2364.9,3.2078]
[1726431974289,3.29,2365.5,2365.1,0.42269]
[1726431974290,0.80654,2365.5,2365.1,0.42269]
[1726431974585,4.09654,2365.5,2365.2,0.4069]
[1726431974989,4.09654,2365.5,2365.2,0.82959]
[1726431975191,3.6739,2365.5,2365.3,0.3938]
[1726431975382,6.5958,2365.9,2365.3,7.8296]
[1726431975582,6.5958,2365.9,2365.4,0.81254]
[1726431975583,0.4067,2365.8,2365.4,0.81254]
[1726431976080,0.4067,2365.8,2365.5,0.42263]
[1726431976483,0.4067,2365.8,2365.6,0.3922]
[1726431977986,0.4067,2365.8,2365.6,0.81481]
[1726431978193,0.4067,2365.8,2365.6,0.3922]
[1726431979493,0.4067,2365.8,2365.6,0.81481]
[1726431979986,6.4978,2365.9,2365.7,0.4226]
[1726431980182,6.4978,2365.9,2365.8,0.4143]
[1726431980393,3.29,2365.9,2365.8,0.4143]
[1726431980693,0.3799,2366.0,2365.8,0.4143]
[1726431980694,0.3799,2366.0,2365.9,0.42256]
[1726431980896,3.6989,2366.3,2365.9,4.64896]
[1726431981196,4.0788,2366.3,2366.0,0.3897]
[1726431982393,4.0788,2366.3,2366.0,0.81224]
[1726431982594,0.3799,2366.3,2366.1,0.42251]
[1726431982895,3.6699,2366.3,2366.1,0.42251]
[1726431983087,3.29,2366.3,2366.2,0.42251]
[1726431983299,3.681,2366.5,2366.3,0.42249]
[1726431983490,3.681,2366.5,2366.2,0.4225]
[1726431983697,3.681,2366.5,2366.0,3.5975]
[1726431983698,3.681,2366.5,2366.3,0.82529]
[1726431985998,0.391,2366.5,2366.3,0.82529]
[1726431986288,3.29,2366.7,2366.4,0.42247]
[1726431986494,3.7036,2366.7,2366.4,0.80797]
[1726431986795,4.04041,2366.8,2366.5,0.42244]
[1726431986796,3.2078,2366.8,2366.5,0.42244]
[1726431987092,0.4136,2366.9,2366.6,0.42243]
[1726431987300,0.83598,2366.9,2366.5,0.81314]
[1726431988999,0.83598,2366.9,2366.5,0.3907]
[1726431989000,0.4224,2366.8,2366.5,0.3907]
[1726431989196,0.4224,2366.8,2366.4,0.80796]
[1726431991797,3.29,2366.5,2366.0,4.149]
[1726431992002,3.29,2366.2,2366.0,4.149]
[1726431994198,0.42253,2366.1,2366.0,4.149]
[1726431994703,0.42253,2366.1,2365.9,0.3891]
[1726431994903,0.4035,2366.0,2365.9,0.3891]
[1726431996193,4.11604,2366.0,2365.6,0.42261]
[1726431996396,4.11604,2366.0,2365.6,0.82081]
[1726431996591,3.29,2365.8,2365.6,4.90268107]
[1726431996797,0.4226,2365.7,2365.6,0.3982]
[1726432000999,3.29,2365.8,2365.6,0.3982]
[1726432001200,3.71259,2365.8,2365.6,0.3982]
[1726432001794,0.80237,2365.9,2365.6,0.3982]
[1726432001996,4.01017,2365.9,2365.6,0.3982]
[1726432002206,0.42258,2365.8,2365.6,0.3982]
[1726432002596,0.42263,2365.6,2365.2,0.8041]
[1726432002796,0.3871,2365.5,2365.2,1.63739]
[1726432003710,0.3871,2365.5,2365.2,1.2147]
[1726432004095,0.3871,2365.5,2365.2,1.63738]
[1726432006200,0.42265,2365.4,2365.2,0.4106]
[1726432006401,0.81995,2365.4,2365.2,0.4106]
[1726432006594,0.3973,2365.4,2365.2,0.4106]
[1726432008903,0.80974,2365.5,2365.2,0.4106]
[1726432009602,0.3871,2365.5,2365.2,0.83329]
[1726432009803,0.80974,2365.5,2365.2,0.83329]
[1726432010907,0.80974,2365.5,2365.2,0.4106]
[1726432012608,0.3871,2365.5,2365.3,0.42267]
[1726432012808,0.3871,2365.5,2365.3,0.4071]
[1726432013208,0.3871,2365.5,2365.3,0.82977]
[1726432013904,3.63042,2365.6,2365.3,0.82977]
[1726432018506,1.24491,2365.7,2365.4,0.42265]
[1726432018808,0.42262,2365.6,2365.3,0.82976]
[1726432019198,0.42262,2365.6,2365.3,0.4071]
[1726432019404,0.42262,2365.6,2365.3,0.82976]
[1726432019811,3.2078,2365.6,2365.3,0.4071]
[1726432020010,3.2078,2365.6,2365.4,0.82124]
[1726432020712,6.9015,2365.7,2365.4,0.82124]
[1726432021012,0.42262,2365.6,2365.3,0.82976]
[1726432021217,7.32411,2365.7,2365.4,0.42265]
[1726432021510,4.11631,2365.7,2365.4,0.42265]
[1726432021713,7.32411,2365.7,2365.4,0.42265]
[1726432022213,3.6937,2365.7,2365.5,0.42262]
[1726432023111,0.42258,2365.8,2365.5,0.42262]
[1726432028411,3.29,2365.6,2365.3,0.4071]
[1726432028715,3.29,2365.6,2365.4,0.42264]
[1726432028906,0.4077,2365.5,2365.4,0.42264]
[1726432032613,0.4118,2365.9,2365.4,4.2272]
[1726432032917,0.4125,2365.9,2365.7,0.42259]
[1726432033118,0.83506,2365.9,2365.8,0.3831]
[1726432033319,0.4125,2365.9,2365.8,0.3831]
[1726432033613,3.2078,2366.0,2365.8,0.80568]
[1726432034020,0.82253,2366.1,2365.8,0.80568]
[1726432035917,4.03033,2366.1,2365.8,0.80568]
[1726432036116,3.71255,2366.0,2365.8,0.3831]
[1726432036512,3.29,2366.0,2365.8,0.80568]
[1726432037623,3.71255,2366.0,2365.8,0.3831]
[1726432043921,0.42255,2366.0,2365.8,0.3831]
[1726432045228,0.42256,2365.9,2365.7,0.4118]
[1726432045428,3.63038,2365.8,2365.5,1.52141784]
[1726432045620,0.42262,2365.6,2365.4,0.3801]
[1726432045825,3.2078,2365.5,2365.4,0.3801]
[1726432046028,1.52,2365.5,2365.4,0.3801]
[1726432047920,0.81711,2365.7,2365.4,0.3801]
[1726432048236,0.42262,2365.6,2365.4,0.3801]
[1726432050925,4.02491,2365.7,2365.4,0.3801]
[1726432051327,4.02491,2365.7,2365.4,0.80275]
[1726432052227,0.3945,2365.7,2365.4,3.6801]
[1726432052429,0.81057,2365.9,2365.5,0.42263]
[1726432052628,0.42258,2365.8,2365.6,0.8032]
[1726432053333,0.81057,2365.9,2365.6,1.22581]
[1726432053529,0.81057,2365.9,2365.6,0.8032]
[1726432054532,0.42259,2365.8,2365.4,5.10933784]
[1726432054734,0.42259,2365.8,2365.4,4.39344]
[1726432055430,3.3,2365.7,2365.4,0.3801]
[1726432055639,0.3979,2365.6,2365.4,0.80275]
[1726432055940,0.3979,2365.6,2365.4,0.3801]
[1726432055941,0.8173,2365.6,2365.4,0.3801]
[1726432059941,0.8173,2365.6,2365.4,0.80275]
[1726432060142,0.4194,2365.6,2365.4,0.80275]
[1726432060344,0.4194,2365.6,2365.4,1.19005]
[1726432061741,0.84202,2365.6,2365.4,0.7674]
[1726432062351,0.4194,2365.6,2365.4,1.19005]
[1726432063737,0.84202,2365.6,2365.4,1.19005]
[1726432065247,0.84202,2365.6,2365.4,0.7674]
[1726432065647,0.4194,2365.6,2365.4,0.7674]
[1726432070049,1.9394,2365.6,2365.4,0.7674]
[1726432070953,4.04259,2365.8,2365.5,0.42262]
[1726432071156,2.74859,2365.8,2365.6,0.4096]
[1726432073755,2.326,2365.8,2365.6,0.4096]
[1726432073958,2.74859,2365.8,2365.6,0.4096]
[1726432074658,0.4226,2365.7,2365.6,0.4096]
[1726432076956,0.4226,2365.7,2365.4,1.19004]
[1726432077157,1.52,2365.6,2365.4,1.19004]
[1726432078361,1.94262,2365.6,2365.4,0.7674]
[1726432078560,1.94263,2365.6,2365.4,0.3801]
[1726432079264,1.52,2365.6,2365.4,0.3801]
[1726432079654,1.94263,2365.6,2365.4,0.3801]
[1726432080260,0.42266,2365.4,2365.2,1.48059784]
[1726432080463,3.63044,2365.5,2365.2,0.794]
[1726432080661,3.63044,2365.5,2365.2,1.21669]
[1726432080965,0.42264,2365.5,2365.2,1.21669]
[1726432081361,1.52,2365.6,2365.2,1.21669]
[1726432081757,1.52,2365.6,2365.3,0.42266]
[1726432081962,1.94262,2365.6,2365.3,0.42266]
[1726432083766,0.42264,2365.5,2365.2,2.31547784]
[1726432084070,1.52,2365.4,2365.2,1.21668]
[1726432084272,1.52,2365.4,2365.2,0.4122]
[1726432084273,1.94267,2365.3,2365.2,0.4122]
[1726432084568,2.35757,2365.3,2365.2,0.4122]
[1726432086560,2.35757,2365.3,2365.0,1.47989784]
[1726432087065,1.9349,2365.3,2365.0,0.80381]
[1726432087267,1.9349,2365.3,2365.0,1.90260784]
[1726432087268,2.35758,2365.3,2365.0,1.90260784]
[1726432088066,2.35758,2365.3,2365.0,0.80381]
[1726432089267,2.35758,2365.3,2365.0,0.3811]
[1726432089467,2.35758,2365.3,2365.0,1.47989784]
[1726432090072,2.35758,2365.3,2365.0,0.3811]
[1726432090268,2.35758,2365.3,2365.0,0.80382]
[1726432090468,2.35758,2365.3,2365.0,1.90261784]
[1726432091374,0.42269,2365.2,2365.0,1.47989784]
[1726432092378,0.42269,2365.2,2365.0,0.3811]
[1726432094874,5.1427,2365.3,2365.0,0.3811]
[1726432095075,5.56538,2365.3,2365.0,0.80382]
[1726432095273,2.35758,2365.3,2365.0,1.90261784]
[1726432095664,2.35758,2365.3,2365.0,0.80382]
[1726432096372,0.42269,2365.2,2365.0,0.80382]
[1726432096873,0.42269,2365.2,2365.0,0.3811]
[1726432097477,0.42269,2365.2,2365.0,1.47989784]
[1726432097675,0.42269,2365.2,2365.0,0.3811]
[1726432098980,0.42269,2365.2,2365.0,0.80382]
[1726432099972,1.9349,2365.3,2364.9,1.09879784]
[1726432099973,1.94271,2365.1,2364.9,1.09879784]
[1726432100177,1.94271,2365.1,2365.0,0.4002]
[1726432100381,1.52,2365.1,2365.0,0.4002]
[1726432100880,5.56538,2365.3,2365.1,0.4227]
[1726432101076,5.56537,2365.3,2365.2,0.3883]
[1726432101571,1.94267,2365.3,2365.2,0.3883]
[1726432105681,1.52,2365.3,2365.2,0.3883]
[1726432106281,1.9323,2365.4,2365.2,0.3883]
[1726432106580,3.2078,2365.7,2365.3,4.7278]
[1726432106787,3.6304,2365.7,2365.5,0.42263]
[1726432106981,0.4191,2365.8,2365.6,0.4192]
[1726432106982,0.84169,2365.8,2365.6,0.4192]
[1726432107683,0.4226,2365.7,2365.6,0.4192]
[1726432108382,2.36169,2365.8,2365.6,0.4192]
[1726432115591,0.831,2365.7,2365.4,0.3964]
[1726432115788,1.52,2365.5,2365.4,0.3964]
[1726432117990,1.52,2365.5,2365.4,0.81905]
[1726432118891,1.52,2365.5,2365.4,0.3964]
[1726432120693,1.923,2365.5,2365.4,0.3964]
[1726432121294,1.923,2365.5,2365.4,0.81905]
[1726432121486,1.923,2365.5,2365.4,0.3964]
[1726432122085,6.1502,2365.5,2365.1,1.52148784]
[1726432122391,1.94266,2365.4,2365.1,1.23579]
[1726432123699,1.52,2365.2,2365.1,0.8131]
[1726432124405,15.3686,2365.2,2364.7,1.09879784]
[1726432124596,15.3686,2365.2,2364.5,2.21089711]
[1726432124597,0.42278,2364.7,2364.5,0.8102]
[1726432124896,3.2078,2364.9,2364.2,2.75697067]
[1726432124897,2.35559,2364.6,2364.2,2.75697067]
[1726432125095,1.52,2364.3,2364.2,1.90899784]
[1726432125284,1.52,2364.3,2364.2,0.8102]
[1726432125998,1.52,2364.4,2364.2,0.8102]
[1726432126797,1.52,2364.3,2364.0,3.6159]
[1726432126993,1.94286,2364.3,2364.0,3.617]
[1726432127296,1.94286,2364.3,2364.0,0.4092]
[1726432127297,1.52,2364.1,2364.0,0.4092]
[1726432127897,1.52,2364.3,2364.0,0.4092]
[1726432129194,1.52,2364.4,2364.0,0.4092]
[1726432130294,0.098,2364.8,2364.2,1.52]
[1726432130597,1.52,2364.6,2364.3,0.7966]
[1726432130900,1.52,2364.5,2364.3,0.7966]
[1726432131694,1.52,2364.5,2363.8,5.24779784]
[1726432131905,1.52,2364.2,2363.9,0.8037]
[1726432134799,1.94287,2364.2,2363.9,0.8037]
[1726432135004,1.52,2364.2,2363.9,0.8037]
[1726432135899,5.15068,2364.2,2363.9,0.8037]
[1726432136203,5.15067,2364.2,2363.9,0.8037]
[1726432136801,0.42288,2364.1,2363.9,0.8037]
[1726432138208,0.4041,2364.0,2363.9,0.8037]
[1726432141107,1.94287,2364.2,2363.9,0.8037]
[1726432142294,1.94287,2364.2,2363.9,0.4038]
[1726432142295,0.4229,2364.1,2363.9,0.4038]
[1726432142497,0.3901,2364.0,2363.9,0.4038]
[1726432143107,2.333,2364.0,2363.7,0.4092]
[1726432143307,1.52,2363.8,2363.7,0.8212]
[1726432143999,1.52,2364.3,2363.9,0.4229]
[1726432144199,4.132,2364.4,2364.1,0.42287]
[1726432144405,1.52,2364.3,2364.2,0.7964]
[1726432146206,4.7278,2364.1,2362.8,0.4713093]
[1726432146515,6.0,2364.3,2361.3,0.4115179]
[1726432146516,1.05776,2362.9,2361.3,0.4115179]
[1726432146703,3.2078,2361.8,2361.2,0.17045858]
[1726432147003,4.75606947,2361.3,2361.0,3.2078]
[1726432147209,4.75606947,2361.3,2360.0,0.2]
[1726432147210,0.42351,2360.6,2360.0,0.2]
[1726432147399,0.42351,2360.6,2360.1,3.2078]
[1726432147598,1.63285439,2360.9,2359.9,3.2078]
[1726432147599,4.2368,2360.5,2359.9,3.2078]
[1726432147793,1.63285439,2360.9,2360.1,3.2078]
[1726432147999,4.94285439,2360.8,2360.2,0.2]
[1726432148200,3.31,2360.7,2360.1,3.2078066]
[1726432148505,5.48757947,2361.2,2359.7,3.2078]
[1726432148506,4.2368,2360.6,2359.7,3.2078]
[1726432148713,3.31,2360.3,2360.0,3.2078]
[1726432149104,0.211,2361.4,2360.2,0.2]
[1726432149306,0.42346,2360.9,2360.7,3.2078]
[1726432149503,3.2078,2361.6,2360.7,6.6156066]
[1726432149704,3.31,2361.1,2361.0,3.2078]
[1726432150209,7.5452,2361.1,2361.0,3.2078]
[1726432150706,7.5452,2361.1,2360.7,3.2078]
[1726432150909,3.31,2360.8,2360.7,3.4078]
[1726432151108,3.31,2360.8,2360.3,3.2078]
[1726432151408,3.31,2360.7,2360.6,3.2078]
[1726432151909,3.31,2360.7,2359.6,7.3180066]
[1726432151910,0.42355,2360.4,2360.0,3.2078]
[1726432152103,3.31,2360.1,2360.0,3.2078]
[1726432152612,4.2368,2360.1,2360.0,3.2078]
[1726432152806,3.31,2360.3,2360.0,3.2078]
[1726432153006,3.31,2360.3,2360.0,3.4078]
[1726432153202,3.2078,2360.6,2360.0,3.2078]
[1726432153406,3.73361,2360.1,2359.7,3.2078]
[1726432153604,0.42362,2360.0,2359.7,3.2078]
[1726432153909,3.31,2359.8,2359.7,3.2078]
[1726432154211,3.31,2359.8,2359.3,3.2078]
[1726432154399,3.31,2359.8,2359.6,0.2]
[1726432154605,3.2078,2360.0,2359.5,0.2]
[1726432154802,0.099,2360.2,2359.3,6.4156066]
[1726432154803,0.099,2360.2,2359.9,0.2]
[1726432155004,3.73356,2360.4,2359.9,0.2]
[1726432155005,3.31,2360.4,2360.1,3.2078]
[1726432155514,3.31,2360.2,2360.1,3.2078]
[1726432155904,7.5468,2360.2,2360.1,3.2078]
[1726432156705,4.2368,2360.2,2360.0,3.2078]
[1726432157110,3.31,2360.3,2360.0,3.4078]
[1726432157809,0.42358,2360.2,2360.0,3.4078]
[1726432158210,3.73357,2360.3,2360.0,3.4078]
[1726432158512,3.31,2360.3,2360.0,3.4078]
[1726432159011,0.42358,2360.2,2360.0,3.4078]
[1726432159213,3.31,2360.1,2360.0,3.2078]
[1726432159412,7.9704,2360.1,2360.0,3.2078]
[1726432159999,13.9704,2360.1,2360.0,3.2078]
[1726432160209,13.9704,2360.1,2358.7,3.3078]
[1726432160210,1.05905,2360.0,2358.7,3.3078]
[1726432160409,3.31,2358.9,2358.7,3.3078]
[1726432160610,3.31,2359.1,2358.7,6.5156066]
[1726432160810,3.31,2359.1,2359.0,3.2078]
[1726432161004,4.66301,2359.0,2358.7,0.1]
[1726432161201,3.31,2358.8,2358.7,0.1]
[1726432161407,4.2392,2358.9,2358.7,0.1]
[1726432161607,3.2078,2359.3,2358.7,0.1]
[1726432161608,3.31,2359.0,2358.8,3.2078]
[1726432161817,3.2078,2359.3,2357.9,3.2078]
[1726432161818,0.42388,2358.6,2357.9,3.2078]
[1726432162005,3.2078,2358.9,2358.1,3.2078]
[1726432162006,4.07,2358.5,2358.1,3.2078]
[1726432162212,0.42386,2358.7,2356.9,3.2078]
[1726432162213,0.42412,2357.3,2356.9,3.2078]
[1726432162417,6.0,2358.9,2357.2,3.9319]
[1726432162418,3.2078,2357.9,2357.2,3.9319]
[1726432162612,1.05958,2358.9,2356.4,4.07]
[1726432162613,3.2078,2358.5,2357.8,3.2078]
[1726432163116,3.2078,2358.5,2357.9,0.42399]
[1726432163425,3.2078,2358.5,2357.9,3.2078]
[1726432164016,3.2078,2358.8,2358.2,3.2078]
[1726432164217,3.2078,2358.8,2357.1,1.2254]
[1726432164218,4.07,2358.3,2357.5,3.2078]
[1726432164517,4.07,2358.3,2357.8,3.2078]
[1726432164718,4.07,2358.3,2357.5,3.2078]
[1726432165117,4.07,2358.3,2357.8,3.2078]
[1726432165313,4.07,2358.3,2357.5,3.2078]
[1726432165815,4.07,2357.9,2357.5,3.2078]
[1726432166008,3.2078,2358.2,2357.4,0.42407]
[1726432166207,3.2078,2358.2,2357.5,3.2078]
[1726432166413,3.2078,2358.2,2357.6,0.42404]
[1726432166609,3.2078,2358.2,2357.5,3.2078]
[1726432167321,3.2078,2358.2,2357.1,1.2254]
[1726432167322,7.2778,2357.9,2357.2,3.2078]
[1726432167507,4.07,2357.9,2357.2,3.2078]
[1726432167710,4.07,2357.9,2357.5,3.2078]
[1726432168617,4.07,2357.9,2357.2,0.3867]
[1726432169123,4.494,2357.9,2357.2,0.3867]
[1726432169417,4.07,2357.9,2357.4,3.2078]
[1726432169619,7.2778,2358.2,2357.4,3.2078]
[1726432169925,7.70175,2358.2,2357.5,3.2078]
[1726432170318,7.2778,2358.2,2357.5,3.2078]
[1726432170618,4.07,2357.9,2357.5,3.2078]
[1726432172117,4.07,2357.9,2357.8,3.2078]
[1726432172313,4.07,2358.2,2357.8,3.2078]
[1726432172717,7.2778,2358.5,2358.1,3.2078]
[1726432172926,4.49384,2358.8,2358.4,3.2078]
[1726432173220,4.07,2358.8,2358.0,3.2078]
[1726432173523,0.213,2359.3,2359.2,0.42376]
[1726432173825,0.211,2360.2,2359.2,3.2078]
[1726432173826,4.283,2360.2,2359.2,3.2078]
[1726432174025,4.283,2360.2,2359.8,3.2078]
[1726432174026,4.07,2360.2,2359.8,3.2078]
[1726432174222,0.213,2360.5,2360.1,3.2078]
[1726432174223,4.07,2360.5,2360.1,3.2078]
[1726432174416,4.07,2360.8,2360.4,3.2078]
[1726432174617,4.07,2361.1,2360.7,3.2078]
[1726432174915,4.07,2361.1,2360.5,0.42353]
[1726432174916,4.07,2361.1,2361.0,3.2078]
[1726432175118,4.07,2361.3,2361.0,3.2078]
[1726432175921,3.2078,2361.1,2360.4,3.2078]
[1726432176124,3.2078,2361.1,2360.0,0.3901]
[1726432176125,4.49353,2360.5,2360.1,3.2078]
[1726432176824,4.07,2360.5,2360.1,3.2078]
[1726432177124,4.07,2360.5,2360.4,3.2078]
[1726432177526,4.07,2360.5,2359.5,3.2078]
[1726432177527,10.07,2360.5,2359.5,3.2078]
[1726432177826,4.07,2360.1,2359.5,3.2078]
[1726432178217,4.07,2360.1,2359.8,3.2078]
[1726432178724,4.07,2360.1,2359.9,3.2078]
[1726432179124,0.213,2360.9,2359.9,3.2078]
[1726432179125,4.07,2360.3,2359.9,7.4454]
[1726432179328,4.07,2360.3,2360.2,3.2078]
[1726432180022,4.58,2360.3,2360.2,3.2078]
[1726432180724,12.0246,2360.3,2359.9,3.2078]
[1726432181023,5.00356,2360.3,2359.6,3.63148]
[1726432181222,4.58,2360.3,2359.6,3.2078]
[1726432181435,5.00357,2360.3,2359.6,3.2078]
[1726432181626,4.58,2360.3,2359.6,3.63148]
[1726432181823,4.58,2360.3,2359.9,3.2078]
[1726432186020,4.132,2360.6,2360.2,3.2078]
[1726432186221,0.42352,2360.6,2360.2,3.2078]
[1726432186624,3.2078,2361.0,2360.3,3.2078]